[Event "*** Titled Tuesday Blitz"]
[Site "Chess.com"]
[Date "2020.04.28"]
[Round "5"]
[White "Ranindu2003"]
[Black "Jaka_Brilej"]
[Result "1-0"]
[WhiteElo "2543"]
[BlackElo "2375"]
[TimeControl "180+1"]
[EndTime "10:56:24 PDT"]
[Termination "Ranindu2003 won by checkmate"]

1. e4 {[%clk 0:03:00.9]} 1... c5 {[%clk 0:02:59.4]} 2. Nf3 {[%clk 0:03:00.9]}
2... Nc6 {[%clk 0:02:59.1]} 3. Bb5 {[%clk 0:03:00.2]} 3... Nf6 {[%clk
0:02:57.2]} 4. e5 {[%clk 0:02:56.7]} 4... Nd5 {[%clk 0:02:56.3]} 5. Nc3 {[%clk
0:02:49.6]} 5... Nc7 {[%clk 0:02:55.7]} 6. Bxc6 {[%clk 0:02:43.4]} 6... dxc6
{[%clk 0:02:56.6]} 7. O-O {[%clk 0:02:42.2]} 7... g6 {[%clk 0:02:56]} 8. h3
{[%clk 0:02:41.4]} 8... Bg7 {[%clk 0:02:55.7]} 9. d3 {[%clk 0:02:41.3]} 9... O-O
{[%clk 0:02:55.2]} 10. Be3 {[%clk 0:02:38.6]} 10... b6 {[%clk 0:02:55]} 11. a4
{[%clk 0:02:33.9]} 11... a5 {[%clk 0:02:52]} 12. d4 {[%clk 0:02:19.4]} 12... Ba6
{[%clk 0:02:49.7]} 13. Re1 {[%clk 0:02:17.9]} 13... cxd4 {[%clk 0:02:36.4]} 14.
Bxd4 {[%clk 0:02:18]} 14... c5 {[%clk 0:02:35.4]} 15. Be3 {[%clk 0:02:17.5]}
15... Qc8 {[%clk 0:02:27.8]} 16. Qc1 {[%clk 0:01:56.8]} 16... Qb7 {[%clk
0:02:25.9]} 17. Bh6 {[%clk 0:01:52.9]} 17... Ne6 {[%clk 0:02:24.5]} 18. Qe3
{[%clk 0:01:47]} 18... Rad8 {[%clk 0:02:21.9]} 19. Ne4 {[%clk 0:01:33.7]} 19...
Bc4 {[%clk 0:02:00.1]} 20. Bxg7 {[%clk 0:01:24.9]} 20... Kxg7 {[%clk 0:01:59.7]}
21. Neg5 {[%clk 0:00:59]} 21... Nxg5 {[%clk 0:01:45.4]} 22. Qxg5 {[%clk
0:00:52.8]} 22... Be6 {[%clk 0:01:27.3]} 23. Rad1 {[%clk 0:00:42]} 23... h6
{[%clk 0:01:07.4]} 24. Qf4 {[%clk 0:00:38.4]} 24... Rd5 {[%clk 0:01:00.3]} 25.
Rxd5 {[%clk 0:00:26]} 25... Qxd5 {[%clk 0:00:59.7]} 26. b3 {[%clk 0:00:21.8]}
26... Rd8 {[%clk 0:00:58.6]} 27. Qg3 {[%clk 0:00:16.7]} 27... c4 {[%clk
0:00:56.4]} 28. bxc4 {[%clk 0:00:12.7]} 28... Qxc4 {[%clk 0:00:56.3]} 29. h4
{[%clk 0:00:13.2]} 29... Qxc2 {[%clk 0:00:44.7]} 30. h5 {[%clk 0:00:13.3]} 30...
g5 {[%clk 0:00:39.8]} 31. Re3 {[%clk 0:00:09.8]} 31... Qxa4 {[%clk 0:00:34.6]}
32. Nxg5 {[%clk 0:00:07.9]} 32... Bg4 {[%clk 0:00:14.7]} 33. Ne4 {[%clk
0:00:06.5]} 33... Qd1+ {[%clk 0:00:14.3]} 34. Kh2 {[%clk 0:00:06.3]} 34... Kh7
{[%clk 0:00:13.9]} 35. f3 {[%clk 0:00:06.3]} 35... Bf5 {[%clk 0:00:13.8]} 36.
Qf4 {[%clk 0:00:06.7]} 36... e6 {[%clk 0:00:13.7]} 37. Nf6+ {[%clk 0:00:05.8]}
37... Kg7 {[%clk 0:00:14.3]} 38. g4 {[%clk 0:00:06]} 38... Qd2+ {[%clk
0:00:13.9]} 39. Kg3 {[%clk 0:00:05.9]} 39... Qd1 {[%clk 0:00:14.4]} 40. gxf5
{[%clk 0:00:05.7]} 40... Qg1+ {[%clk 0:00:14.4]} 41. Kh3 {[%clk 0:00:06]} 41...
Qh1+ {[%clk 0:00:14.9]} 42. Kg4 {[%clk 0:00:06.2]} 42... Qg2+ {[%clk 0:00:15]}
43. Qg3 {[%clk 0:00:06.7]} 43... exf5+ {[%clk 0:00:15.6]} 44. Kf4+ {[%clk
0:00:06.3]} 44... Qxg3+ {[%clk 0:00:16.3]} 45. Kxg3 {[%clk 0:00:06.3]} 45... a4
{[%clk 0:00:17.2]} 46. Kf4 {[%clk 0:00:06]} 46... Rd4+ {[%clk 0:00:17.4]} 47.
Kxf5 {[%clk 0:00:06.3]} 47... b5 {[%clk 0:00:18.3]} 48. Ra3 {[%clk 0:00:06.4]}
48... Rb4 {[%clk 0:00:17.4]} 49. f4 {[%clk 0:00:06.7]} 49... Rb3 {[%clk
0:00:17.8]} 50. Ra2 {[%clk 0:00:07.3]} 50... b4 {[%clk 0:00:17.8]} 51. Rg2+
{[%clk 0:00:07.8]} 51... Kf8 {[%clk 0:00:17.5]} 52. Rg8+ {[%clk 0:00:08.4]}
52... Ke7 {[%clk 0:00:18]} 53. Re8# {[%clk 0:00:09]} 1-0

[Event "*** Titled Tuesday Blitz"]
[Site "Chess.com"]
[Date "2020.04.28"]
[Round "5"]
[White "ljuks68"]
[Black "JulAnt"]
[Result "1/2-1/2"]
[WhiteElo "2356"]
[BlackElo "2518"]
[TimeControl "180+1"]
[EndTime "10:56:24 PDT"]
[Termination "Game drawn - insufficient material"]

1. e4 {[%clk 0:03:00.9]} 1... c5 {[%clk 0:02:59.3]} 2. Nf3 {[%clk 0:03:00.9]}
2... e6 {[%clk 0:02:56.8]} 3. d4 {[%clk 0:03:00.8]} 3... cxd4 {[%clk 0:02:56.8]}
4. Nxd4 {[%clk 0:03:00.9]} 4... Nf6 {[%clk 0:02:57]} 5. Nc3 {[%clk 0:03:01]}
5... d6 {[%clk 0:02:57.3]} 6. g4 {[%clk 0:02:59.7]} 6... h6 {[%clk 0:02:57.2]}
7. h4 {[%clk 0:02:58.6]} 7... Nc6 {[%clk 0:02:52.4]} 8. g5 {[%clk 0:02:56.5]}
8... hxg5 {[%clk 0:02:50.8]} 9. Bxg5 {[%clk 0:02:57]} 9... a6 {[%clk 0:02:38.7]}
10. Qd2 {[%clk 0:02:56.4]} 10... Qb6 {[%clk 0:02:12.6]} 11. Nb3 {[%clk
0:02:50.4]} 11... Bd7 {[%clk 0:02:10.5]} 12. O-O-O {[%clk 0:02:48.1]} 12... Rc8
{[%clk 0:02:10.5]} 13. Kb1 {[%clk 0:02:24.4]} 13... Qc7 {[%clk 0:02:05.4]} 14.
f4 {[%clk 0:02:17.5]} 14... b5 {[%clk 0:02:04.3]} 15. a3 {[%clk 0:02:16.8]}
15... b4 {[%clk 0:01:43.8]} 16. axb4 {[%clk 0:02:14.5]} 16... Nxb4 {[%clk
0:01:44.7]} 17. e5 {[%clk 0:02:09.5]} 17... Nfd5 {[%clk 0:01:31.7]} 18. Nxd5
{[%clk 0:02:04.7]} 18... Nxd5 {[%clk 0:01:30.8]} 19. exd6 {[%clk 0:01:52.3]}
19... Bxd6 {[%clk 0:01:30.2]} 20. c4 {[%clk 0:01:48.9]} 20... Qb6 {[%clk
0:01:06.4]} 21. Rh3 {[%clk 0:01:03.1]} 21... Bb4 {[%clk 0:00:51.8]} 22. Qd3
{[%clk 0:01:02.3]} 22... f6 {[%clk 0:00:32.1]} 23. cxd5 {[%clk 0:00:58.6]} 23...
O-O {[%clk 0:00:29.9]} 24. Re3 {[%clk 0:00:49.3]} 24... Bb5 {[%clk 0:00:20.6]}
25. Qd4 {[%clk 0:00:49.3]} 25... Qxd4 {[%clk 0:00:17.8]} 26. Rxd4 {[%clk
0:00:48.9]} 26... Bxf1 {[%clk 0:00:18]} 27. Rxb4 {[%clk 0:00:48.7]} 27... fxg5
{[%clk 0:00:18.1]} 28. dxe6 {[%clk 0:00:45.7]} 28... gxf4 {[%clk 0:00:18.2]} 29.
Rf3 {[%clk 0:00:44.8]} 29... Bc4 {[%clk 0:00:15.6]} 30. Nd4 {[%clk 0:00:42]}
30... Bd5 {[%clk 0:00:14.8]} 31. Rf2 {[%clk 0:00:37.4]} 31... Be4+ {[%clk
0:00:13.6]} 32. Ka2 {[%clk 0:00:32.6]} 32... f3 {[%clk 0:00:14.1]} 33. Ka3
{[%clk 0:00:22.7]} 33... Rc5 {[%clk 0:00:12.1]} 34. Rb6 {[%clk 0:00:18.6]} 34...
Rc4 {[%clk 0:00:10]} 35. Nxf3 {[%clk 0:00:12.8]} 35... Bxf3 {[%clk 0:00:08]} 36.
e7 {[%clk 0:00:12.2]} 36... Re8 {[%clk 0:00:08.3]} 37. Rxf3 {[%clk 0:00:12.3]}
37... Rxe7 {[%clk 0:00:08.8]} 38. Rxa6 {[%clk 0:00:11.9]} 38... Rxh4 {[%clk
0:00:08.6]} 39. Ra8+ {[%clk 0:00:11.8]} 39... Kh7 {[%clk 0:00:08.6]} 40. Ra4
{[%clk 0:00:12.1]} 40... Rxa4+ {[%clk 0:00:08.4]} 41. Kxa4 {[%clk 0:00:12.2]}
41... g5 {[%clk 0:00:09.1]} 42. b4 {[%clk 0:00:12.2]} 42... Kg6 {[%clk
0:00:09.4]} 43. b5 {[%clk 0:00:11.9]} 43... g4 {[%clk 0:00:09.8]} 44. Rf1 {[%clk
0:00:11.6]} 44... Kg5 {[%clk 0:00:10.2]} 45. b6 {[%clk 0:00:11.7]} 45... g3
{[%clk 0:00:08.5]} 46. Ka5 {[%clk 0:00:11.2]} 46... Kg4 {[%clk 0:00:08.8]} 47.
Ka6 {[%clk 0:00:10.6]} 47... g2 {[%clk 0:00:08.9]} 48. Rg1 {[%clk 0:00:09.9]}
48... Kg3 {[%clk 0:00:09.1]} 49. b7 {[%clk 0:00:09.7]} 49... Rxb7 {[%clk
0:00:08.4]} 50. Kxb7 {[%clk 0:00:09.7]} 50... Kf2 {[%clk 0:00:08.8]} 51. Rxg2+
{[%clk 0:00:09.9]} 51... Kxg2 {[%clk 0:00:09.7]} 1/2-1/2

[Event "*** Titled Tuesday Blitz"]
[Site "Chess.com"]
[Date "2020.04.28"]
[Round "5"]
[White "IwkooO"]
[Black "GeorgMeier"]
[Result "0-1"]
[WhiteElo "2581"]
[BlackElo "3002"]
[TimeControl "180+1"]
[EndTime "10:56:25 PDT"]
[Termination "GeorgMeier won by resignation"]

1. e4 {[%clk 0:02:55.6]} 1... e6 {[%clk 0:03:00.9]} 2. d4 {[%clk 0:02:55.1]}
2... d5 {[%clk 0:03:01.1]} 3. Nd2 {[%clk 0:02:53.6]} 3... dxe4 {[%clk
0:03:01.1]} 4. Nxe4 {[%clk 0:02:54.5]} 4... Nd7 {[%clk 0:03:01.6]} 5. Nf3 {[%clk
0:02:54.2]} 5... Ngf6 {[%clk 0:03:01.8]} 6. Nxf6+ {[%clk 0:02:32.2]} 6... Nxf6
{[%clk 0:03:02.7]} 7. Bd3 {[%clk 0:02:32.3]} 7... c5 {[%clk 0:03:02.3]} 8. O-O
{[%clk 0:02:26.9]} 8... cxd4 {[%clk 0:02:52.8]} 9. Nxd4 {[%clk 0:02:23.4]} 9...
Bc5 {[%clk 0:02:52.9]} 10. Nf3 {[%clk 0:02:00.8]} 10... O-O {[%clk 0:02:52.4]}
11. Qe2 {[%clk 0:01:57.6]} 11... b6 {[%clk 0:02:52.6]} 12. Bg5 {[%clk
0:01:57.2]} 12... Bb7 {[%clk 0:02:52.6]} 13. Rad1 {[%clk 0:01:48.5]} 13... Qc7
{[%clk 0:02:52.7]} 14. Bxf6 {[%clk 0:01:43.5]} 14... gxf6 {[%clk 0:02:52.6]} 15.
Be4 {[%clk 0:01:44.1]} 15... Rfd8 {[%clk 0:02:52.1]} 16. c3 {[%clk 0:01:40.8]}
16... Rac8 {[%clk 0:02:50.3]} 17. Nd2 {[%clk 0:01:27.9]} 17... f5 {[%clk
0:02:48.6]} 18. Bxb7 {[%clk 0:01:26.8]} 18... Qxb7 {[%clk 0:02:49.5]} 19. Nb3
{[%clk 0:01:22.7]} 19... Be7 {[%clk 0:02:48.3]} 20. Rxd8+ {[%clk 0:01:20.6]}
20... Rxd8 {[%clk 0:02:47.9]} 21. Rd1 {[%clk 0:01:21.2]} 21... Rxd1+ {[%clk
0:02:48.1]} 22. Qxd1 {[%clk 0:01:22.1]} 22... Qa6 {[%clk 0:02:48.7]} 23. a3
{[%clk 0:00:51]} 23... Qb5 {[%clk 0:02:33.1]} 24. Qc2 {[%clk 0:00:49.3]} 24...
Bf6 {[%clk 0:02:15.1]} 25. g3 {[%clk 0:00:44.5]} 25... Qc4 {[%clk 0:02:11.1]}
26. Nc1 {[%clk 0:00:44.3]} 26... b5 {[%clk 0:01:59.8]} 27. Qd3 {[%clk
0:00:27.7]} 27... Qxd3 {[%clk 0:01:54.4]} 28. Nxd3 {[%clk 0:00:28.6]} 28... Kf8
{[%clk 0:01:55]} 29. Kf1 {[%clk 0:00:28.7]} 29... Ke7 {[%clk 0:01:55.1]} 30. Ke2
{[%clk 0:00:29.2]} 30... Kd6 {[%clk 0:01:55.5]} 31. Ne1 {[%clk 0:00:23]} 31...
a5 {[%clk 0:01:52.5]} 32. Kd3 {[%clk 0:00:21.6]} 32... e5 {[%clk 0:01:40.6]} 33.
f3 {[%clk 0:00:18.9]} 33... Kd5 {[%clk 0:01:38.7]} 34. Ng2 {[%clk 0:00:15.6]}
34... e4+ {[%clk 0:01:37.3]} 35. fxe4+ {[%clk 0:00:15.5]} 35... fxe4+ {[%clk
0:01:38.2]} 36. Kc2 {[%clk 0:00:07.3]} 36... Bg5 {[%clk 0:01:38.1]} 37. b3
{[%clk 0:00:06.8]} 37... a4 {[%clk 0:01:37.3]} 38. c4+ {[%clk 0:00:02.3]} 38...
bxc4 {[%clk 0:01:35]} 39. bxa4 {[%clk 0:00:02.7]} 39... e3 {[%clk 0:01:23.4]}
40. a5 {[%clk 0:00:02.5]} 40... e2 {[%clk 0:01:04.4]} 41. Kc3 {[%clk 0:00:02.6]}
41... h5 {[%clk 0:00:56.2]} 42. a6 {[%clk 0:00:02.1]} 42... Kc6 {[%clk
0:00:56.4]} 43. Kxc4 {[%clk 0:00:02.3]} 43... Bd2 {[%clk 0:00:56.9]} 44. Kd3
{[%clk 0:00:01.2]} 44... e1=Q {[%clk 0:00:57.2]} 45. Nxe1 {[%clk 0:00:01.8]}
45... Bxe1 {[%clk 0:00:58.1]} 46. Ke4 {[%clk 0:00:02.7]} 46... h4 {[%clk
0:00:45.5]} 47. gxh4 {[%clk 0:00:01.8]} 47... Bxh4 {[%clk 0:00:46.4]} 48. Kf5
{[%clk 0:00:02.4]} 48... Kb6 {[%clk 0:00:45.4]} 49. Kg4 {[%clk 0:00:02.6]} 49...
Bf6 {[%clk 0:00:42.7]} 50. h4 {[%clk 0:00:02]} 50... Kxa6 {[%clk 0:00:41.2]} 51.
h5 {[%clk 0:00:02.6]} 51... Kb5 {[%clk 0:00:38.6]} 52. Kf5 {[%clk 0:00:02.9]}
52... Bg7 {[%clk 0:00:36.2]} 53. h6 {[%clk 0:00:02.7]} 53... Bh8 {[%clk
0:00:34]} 54. h7 {[%clk 0:00:02.6]} 54... Ka4 {[%clk 0:00:33]} 55. Ke4 {[%clk
0:00:03.2]} 55... Kxa3 {[%clk 0:00:33.1]} 56. Kd5 {[%clk 0:00:03.7]} 56... Kb4
{[%clk 0:00:33.2]} 57. Kd6 {[%clk 0:00:04.1]} 57... Kc4 {[%clk 0:00:33.6]} 58.
Ke7 {[%clk 0:00:03.4]} 58... f5 {[%clk 0:00:33.8]} 59. Kf7 {[%clk 0:00:04]}
59... f4 {[%clk 0:00:33.6]} 60. Kg8 {[%clk 0:00:04.6]} 60... Bd4 {[%clk
0:00:33.7]} 0-1

[Event "*** Titled Tuesday Blitz"]
[Site "Chess.com"]
[Date "2020.04.28"]
[Round "5"]
[White "doctorcristian"]
[Black "GM_DarwinLaylo"]
[Result "1/2-1/2"]
[WhiteElo "2340"]
[BlackElo "2581"]
[TimeControl "180+1"]
[EndTime "10:56:25 PDT"]
[Termination "Game drawn by repetition"]

1. d4 {[%clk 0:03:00.1]} 1... d5 {[%clk 0:02:58.1]} 2. Nc3 {[%clk 0:02:58.9]}
2... Nf6 {[%clk 0:02:54.8]} 3. Bf4 {[%clk 0:02:57.4]} 3... g6 {[%clk 0:02:47.9]}
4. Qd2 {[%clk 0:02:54.7]} 4... Bg7 {[%clk 0:02:47.3]} 5. Bh6 {[%clk 0:02:51.4]}
5... O-O {[%clk 0:02:43.6]} 6. Bxg7 {[%clk 0:02:49.4]} 6... Kxg7 {[%clk
0:02:43.2]} 7. e3 {[%clk 0:02:50.3]} 7... a6 {[%clk 0:02:38.1]} 8. f3 {[%clk
0:02:48.4]} 8... b5 {[%clk 0:02:35.4]} 9. g4 {[%clk 0:02:31.6]} 9... h5 {[%clk
0:02:28.5]} 10. g5 {[%clk 0:02:28.7]} 10... Ne8 {[%clk 0:02:22.7]} 11. h4 {[%clk
0:02:28]} 11... e6 {[%clk 0:02:10.3]} 12. f4 {[%clk 0:02:25.9]} 12... Nd6 {[%clk
0:02:08.8]} 13. Nf3 {[%clk 0:02:23.9]} 13... Bb7 {[%clk 0:02:06.9]} 14. a3
{[%clk 0:02:18.4]} 14... Nd7 {[%clk 0:02:05.1]} 15. Bg2 {[%clk 0:02:12]} 15...
Rc8 {[%clk 0:02:03.7]} 16. O-O {[%clk 0:02:09.4]} 16... Nf5 {[%clk 0:02:01.7]}
17. b4 {[%clk 0:02:05.3]} 17... Nb6 {[%clk 0:01:59.4]} 18. Ne5 {[%clk
0:01:56.8]} 18... Nxh4 {[%clk 0:01:55]} 19. Bh1 {[%clk 0:01:55.8]} 19... Nf5
{[%clk 0:01:53.3]} 20. Rae1 {[%clk 0:01:52.1]} 20... Nc4 {[%clk 0:01:49.5]} 21.
Nxc4 {[%clk 0:01:50]} 21... bxc4 {[%clk 0:01:48.2]} 22. Na4 {[%clk 0:01:45.3]}
22... Bc6 {[%clk 0:01:42.4]} 23. Nc5 {[%clk 0:01:44.6]} 23... Ra8 {[%clk
0:01:42.3]} 24. Bg2 {[%clk 0:01:38.3]} 24... Rh8 {[%clk 0:01:34.8]} 25. Bh3
{[%clk 0:01:36.8]} 25... Ng3 {[%clk 0:01:29.2]} 26. Rf3 {[%clk 0:01:34.1]} 26...
Ne4 {[%clk 0:01:28.8]} 27. Nxe4 {[%clk 0:01:32.5]} 27... dxe4 {[%clk 0:01:28.3]}
28. Rf2 {[%clk 0:01:31.8]} 28... Qd5 {[%clk 0:01:26]} 29. Bf1 {[%clk 0:01:30]}
29... a5 {[%clk 0:01:12.3]} 30. Rb1 {[%clk 0:01:23.9]} 30... axb4 {[%clk
0:01:05.5]} 31. Qxb4 {[%clk 0:01:17.8]} 31... Rhb8 {[%clk 0:00:47.8]} 32. Qxb8
{[%clk 0:01:13.6]} 32... Rxb8 {[%clk 0:00:47.3]} 33. Rxb8 {[%clk 0:01:13]} 33...
c3 {[%clk 0:00:40]} 34. Rb3 {[%clk 0:01:08]} 34... Qf5 {[%clk 0:00:36]} 35. Rxc3
{[%clk 0:00:59.9]} 35... Bd5 {[%clk 0:00:32.5]} 36. Be2 {[%clk 0:00:55.3]} 36...
Qh3 {[%clk 0:00:26.9]} 37. Rg2 {[%clk 0:00:49.2]} 37... Qh4 {[%clk 0:00:24.2]}
38. Kf1 {[%clk 0:00:43.8]} 38... Qh1+ {[%clk 0:00:22.8]} 39. Rg1 {[%clk
0:00:42.9]} 39... Qh3+ {[%clk 0:00:20.1]} 40. Kf2 {[%clk 0:00:42.8]} 40... Qh2+
{[%clk 0:00:16.6]} 41. Rg2 {[%clk 0:00:40.6]} 41... Qh4+ {[%clk 0:00:16.6]} 42.
Rg3 {[%clk 0:00:40.2]} 42... Qh2+ {[%clk 0:00:16.3]} 43. Rg2 {[%clk 0:00:39.6]}
43... Qh1 {[%clk 0:00:15.5]} 44. Rg1 {[%clk 0:00:37]} 44... Qh2+ {[%clk
0:00:12.2]} 45. Rg2 {[%clk 0:00:36.5]} 1/2-1/2

[Event "*** Titled Tuesday Blitz"]
[Site "Chess.com"]
[Date "2020.04.28"]
[Round "5"]
[White "WIDBIFS"]
[Black "Gahan-MG"]
[Result "1/2-1/2"]
[WhiteElo "2835"]
[BlackElo "2680"]
[TimeControl "180+1"]
[EndTime "10:56:26 PDT"]
[Termination "Game drawn by agreement"]

1. d4 {[%clk 0:03:00.9]} 1... Nf6 {[%clk 0:02:59.8]} 2. Nf3 {[%clk 0:03:01.3]}
2... g6 {[%clk 0:02:59.8]} 3. g3 {[%clk 0:03:01.3]} 3... Bg7 {[%clk 0:03:00.1]}
4. Bg2 {[%clk 0:03:01.1]} 4... O-O {[%clk 0:03:00.6]} 5. O-O {[%clk 0:03:02]}
5... d5 {[%clk 0:03:01.2]} 6. c4 {[%clk 0:03:02.2]} 6... Nc6 {[%clk 0:03:01]} 7.
cxd5 {[%clk 0:02:43.7]} 7... Nxd5 {[%clk 0:03:01.9]} 8. e4 {[%clk 0:02:42.7]}
8... Nb6 {[%clk 0:03:02]} 9. d5 {[%clk 0:02:43.2]} 9... Na5 {[%clk 0:03:02.2]}
10. h3 {[%clk 0:02:43.9]} 10... c6 {[%clk 0:03:02.4]} 11. Nc3 {[%clk 0:02:44.6]}
11... cxd5 {[%clk 0:03:02.4]} 12. exd5 {[%clk 0:02:45.5]} 12... Nac4 {[%clk
0:03:02.1]} 13. Qe2 {[%clk 0:02:40.5]} 13... Re8 {[%clk 0:02:59.1]} 14. Bg5
{[%clk 0:02:37.8]} 14... Nxb2 {[%clk 0:02:57.4]} 15. Rac1 {[%clk 0:01:53.3]}
15... N2c4 {[%clk 0:02:55.4]} 16. Rfd1 {[%clk 0:01:50.7]} 16... Nd6 {[%clk
0:02:54.9]} 17. Re1 {[%clk 0:01:30.3]} 17... Kf8 {[%clk 0:02:30.2]} 18. Nb5
{[%clk 0:01:14.3]} 18... Nxb5 {[%clk 0:02:27.6]} 19. Qxb5 {[%clk 0:01:15.2]}
19... Qxd5 {[%clk 0:02:22.2]} 20. Qb4 {[%clk 0:00:59.6]} 20... Be6 {[%clk
0:02:14.5]} 21. Qh4 {[%clk 0:00:53]} 21... Kg8 {[%clk 0:02:00.6]} 22. Bxe7
{[%clk 0:00:51]} 22... Qh5 {[%clk 0:01:52]} 23. Qxh5 {[%clk 0:00:27.2]} 23...
gxh5 {[%clk 0:01:52.9]} 24. Bc5 {[%clk 0:00:17.2]} 24... Bxa2 {[%clk 0:01:48.3]}
25. Nd4 {[%clk 0:00:17.7]} 25... Bd5 {[%clk 0:01:36]} 26. Bxb6 {[%clk
0:00:15.2]} 26... Bxg2 {[%clk 0:01:34.2]} 27. Kxg2 {[%clk 0:00:15.7]} 27... axb6
{[%clk 0:01:32.6]} 28. Nf5 {[%clk 0:00:16.3]} 28... Bf6 {[%clk 0:01:26]} 29. Nd6
{[%clk 0:00:12.5]} 29... Rxe1 {[%clk 0:01:21.3]} 30. Rxe1 {[%clk 0:00:13.4]}
30... Rd8 {[%clk 0:01:19.3]} 31. Ne4 {[%clk 0:00:05.8]} 31... Bd4 {[%clk
0:01:14.5]} 32. Rd1 {[%clk 0:00:05.9]} 32... Kg7 {[%clk 0:01:12.5]} 33. Kf3
{[%clk 0:00:05.7]} 33... b5 {[%clk 0:01:12]} 34. Rb1 {[%clk 0:00:06.2]} 34...
Rd5 {[%clk 0:01:09.9]} 35. Ke2 {[%clk 0:00:05.8]} 35... h4 {[%clk 0:01:05.3]}
36. g4 {[%clk 0:00:05.8]} 36... b6 {[%clk 0:00:57.9]} 37. f3 {[%clk 0:00:06]}
37... h5 {[%clk 0:00:47]} 38. g5 {[%clk 0:00:06.3]} 38... Kg6 {[%clk 0:00:45.4]}
39. f4 {[%clk 0:00:06.3]} 39... f6 {[%clk 0:00:40.6]} 40. gxf6 {[%clk
0:00:04.6]} 40... Bxf6 {[%clk 0:00:41.5]} 41. Ke3 {[%clk 0:00:04.1]} 41... Kf5
{[%clk 0:00:36.9]} 42. Rxb5 {[%clk 0:00:04.2]} 42... Rxb5 {[%clk 0:00:35.8]} 43.
Nd6+ {[%clk 0:00:04.4]} 43... Ke6 {[%clk 0:00:35.7]} 44. Nxb5 {[%clk 0:00:05.3]}
44... Kd5 {[%clk 0:00:34.3]} 45. Nc7+ {[%clk 0:00:05.3]} 45... Kc4 {[%clk
0:00:31]} 46. Ke4 {[%clk 0:00:04.1]} 46... b5 {[%clk 0:00:25.2]} 47. Nd5 {[%clk
0:00:02.8]} 47... Bd8 {[%clk 0:00:22.7]} 48. f5 {[%clk 0:00:03.2]} 48... b4
{[%clk 0:00:21]} 49. Nxb4 {[%clk 0:00:03.5]} 49... Kxb4 {[%clk 0:00:21.1]} 50.
Ke5 {[%clk 0:00:04.4]} 50... Kc5 {[%clk 0:00:20.5]} 51. f6 {[%clk 0:00:04.9]}
51... Bxf6+ {[%clk 0:00:17.4]} 52. Kxf6 {[%clk 0:00:05.8]} 52... Kd6 {[%clk
0:00:18.3]} 53. Kg5 {[%clk 0:00:06.3]} 53... Ke6 {[%clk 0:00:18.6]} 54. Kxh5
{[%clk 0:00:07.2]} 54... Kf6 {[%clk 0:00:19.1]} 55. Kxh4 {[%clk 0:00:08.1]}
55... Kg7 {[%clk 0:00:19.6]} 56. Kg5 {[%clk 0:00:08.5]} 56... Kh8 {[%clk
0:00:20.5]} 57. h4 {[%clk 0:00:08.2]} 57... Kg8 {[%clk 0:00:21.4]} 1/2-1/2

[Event "*** Titled Tuesday Blitz"]
[Site "Chess.com"]
[Date "2020.04.28"]
[Round "5"]
[White "Larina_Marija"]
[Black "Shuvatkin_Vladimir"]
[Result "0-1"]
[WhiteElo "2157"]
[BlackElo "2307"]
[TimeControl "180+1"]
[EndTime "10:56:28 PDT"]
[Termination "Shuvatkin_Vladimir won on time"]

1. e4 {[%clk 0:02:59.9]} 1... e6 {[%clk 0:02:59.6]} 2. d4 {[%clk 0:02:59.8]}
2... d5 {[%clk 0:02:59.8]} 3. Nc3 {[%clk 0:02:59.7]} 3... dxe4 {[%clk
0:02:59.6]} 4. Nxe4 {[%clk 0:02:59.8]} 4... Bd7 {[%clk 0:02:59.9]} 5. Nf3 {[%clk
0:02:51.4]} 5... Bc6 {[%clk 0:02:59.7]} 6. Ng3 {[%clk 0:02:46.7]} 6... Nd7
{[%clk 0:02:59.6]} 7. Be2 {[%clk 0:02:37.7]} 7... Ngf6 {[%clk 0:02:57.7]} 8. O-O
{[%clk 0:02:37.1]} 8... Be7 {[%clk 0:02:53.4]} 9. c4 {[%clk 0:02:19.6]} 9... O-O
{[%clk 0:02:51.2]} 10. Bf4 {[%clk 0:02:09.5]} 10... b6 {[%clk 0:02:51.1]} 11.
Qd2 {[%clk 0:02:05.7]} 11... Bb7 {[%clk 0:02:50.9]} 12. Rfd1 {[%clk 0:02:02.2]}
12... Qc8 {[%clk 0:02:46.3]} 13. Rac1 {[%clk 0:01:55.5]} 13... c5 {[%clk
0:02:42.9]} 14. dxc5 {[%clk 0:01:31.4]} 14... Nxc5 {[%clk 0:02:40.4]} 15. Ne5
{[%clk 0:01:18.5]} 15... Rd8 {[%clk 0:02:29.3]} 16. Qe3 {[%clk 0:01:18.1]} 16...
a5 {[%clk 0:02:11.7]} 17. a3 {[%clk 0:01:13.1]} 17... a4 {[%clk 0:02:10.7]} 18.
Bf3 {[%clk 0:00:59.7]} 18... Nb3 {[%clk 0:01:57.2]} 19. Rxd8+ {[%clk 0:00:58.1]}
19... Bxd8 {[%clk 0:01:54.4]} 20. Rd1 {[%clk 0:00:56.5]} 20... Bxf3 {[%clk
0:01:45.1]} 21. Qxf3 {[%clk 0:00:56.6]} 21... Be7 {[%clk 0:01:39.6]} 22. Nh5
{[%clk 0:00:53.2]} 22... Nxh5 {[%clk 0:01:31.3]} 23. Qxh5 {[%clk 0:00:52.5]}
23... g6 {[%clk 0:01:31.1]} 24. Qf3 {[%clk 0:00:49.7]} 24... Qe8 {[%clk
0:01:24.5]} 25. Bh6 {[%clk 0:00:42.2]} 25... Rd8 {[%clk 0:01:15.6]} 26. Rxd8
{[%clk 0:00:37.3]} 26... Bxd8 {[%clk 0:01:14.7]} 27. Ng4 {[%clk 0:00:32]} 27...
Qe7 {[%clk 0:01:01.3]} 28. Qc3 {[%clk 0:00:31.7]} 28... f6 {[%clk 0:00:55]} 29.
h3 {[%clk 0:00:30.5]} 29... Nc5 {[%clk 0:00:52.1]} 30. Be3 {[%clk 0:00:28.6]}
30... e5 {[%clk 0:00:47.9]} 31. Nh6+ {[%clk 0:00:25]} 31... Kg7 {[%clk
0:00:44.8]} 32. Ng4 {[%clk 0:00:21.1]} 32... Qd6 {[%clk 0:00:40]} 33. Qc2 {[%clk
0:00:18]} 33... h5 {[%clk 0:00:28.2]} 34. Nh2 {[%clk 0:00:13.9]} 34... Qd3
{[%clk 0:00:28.3]} 35. Qc1 {[%clk 0:00:11.3]} 35... Nb3 {[%clk 0:00:27.3]} 36.
Qe1 {[%clk 0:00:09.1]} 36... Qxc4 {[%clk 0:00:25.4]} 37. Nf3 {[%clk 0:00:09.3]}
37... Nc5 {[%clk 0:00:21.1]} 38. Bxc5 {[%clk 0:00:07.9]} 38... Qxc5 {[%clk
0:00:19.8]} 39. Qd1 {[%clk 0:00:08]} 39... Be7 {[%clk 0:00:18.1]} 40. Qxa4
{[%clk 0:00:06.4]} 40... Qc1+ {[%clk 0:00:15.6]} 41. Kh2 {[%clk 0:00:06.5]}
41... Qf4+ {[%clk 0:00:15.5]} 42. Kg1 {[%clk 0:00:05.9]} 42... Qxa4 {[%clk
0:00:14.9]} 0-1